[Event "Kurnosov Memorial Rapid 2019"]
[Site "Chelyabinsk"]
[Date "2019.09.08"]
[Round "11.9"]
[White "Drygalov, Andrey"]
[Black "Kabanov, Nikolai"]
[Result "1-0"]
[ECO "C42"]
[WhiteElo "2499"]
[BlackElo "2455"]
[Annotator "ChessBase"]
[PlyCount "101"]
[EventDate "2019.09.06"]
[EventType "swiss"]
[EventCountry "RUS"]
[SourceTitle "playchess.com"]
[Source "ChessBase"]
[SourceQuality "1"]
[TimeControl "900+10"]

1. e4 {[%emt 0:00:00]} e5 {[%emt 0:00:00]} 2. Nf3 {[%emt 0:00:00]} Nf6 {[%emt 0:00:00]} 3. Nxe5 {[%emt 0:01:07]} d6 {[%emt 0:00:00]} 4. Nf3 {[%emt 0:00:01]} Nxe4 {[%emt 0:00:00]} 5. Qe2 {[%emt 0:00:07]} Qe7 {[%emt 0:00:00]} 6. d3 {[%emt 0:00:01]} Nf6 {[%emt 0:00:03]} 7. Nc3 {[%emt 0:00:01]} Qxe2+ {[%emt 0:00:04]} 8. Bxe2 {[%emt 0:00:02]} Bd7 {[%emt 0:00:02]} 9. Bg5 {[%emt 0:00:11]} Be7 {[%emt 0:00:06]} 10. O-O-O {[%emt 0:00:08]} Nc6 {[%emt 0:00:13]} 11. Rde1 {[%emt 0:00:28]} h6 {[%emt 0:00:43]} 12. Bd2 {[%emt 0:00:01]} O-O-O {[%emt 0:00:10]} 13. d4 {[%emt 0:00:49]} Rde8 {[%emt 0:01:06]} 14. Bc4 {[%emt 0:00:16]} Rhf8 {[%emt 0:00:20]} 15. d5 {[%emt 0:00:36]} Nb8 {[%emt 0:01:36]} 16. h3 {[%emt 0:00:43]} Bf5 {[%emt 0:00:50]} 17. Nd4 {[%emt 0:00:47]} Bh7 {[%emt 0:00:10]} 18. g4 {[%emt 0:02:44]} Nbd7 {[%emt 0:00:03]} 19. f4 {[%emt 0:00:02]} a6 {[%emt 0:00:10]} 20. a4 {[%emt 0:00:04]} Nc5 {[%emt 0:00:08]} 21. f5 {[%emt 0:01:41]} Bd8 {[%emt 0:00:14]} 22. Nf3 {[%emt 0:00:48]} Nfe4 {[%emt 0:00:33]} 23. Nxe4 {[%emt 0:00:28]} Nxe4 {[%emt 0:00:41]} 24. Be3 {[%emt 0:00:07]} Ng5 {[%emt 0:00:35]} 25. Nxg5 {[%emt 0:00:43]} Bxg5 {[%emt 0:00:16]} 26. Bxg5 {[%emt 0:00:01]} hxg5 {[%emt 0:00:05]} 27. Kd2 {[%emt 0:00:48]} f6 {[%emt 0:00:38]} 28. Bd3 {[%emt 0:00:29]} Bg8 {[%emt 0:00:22]} 29. c4 {[%emt 0:00:01]} Bf7 {[%emt 0:00:02]} 30. a5 {[%emt 0:00:11]} Rxe1 {[%emt 0:02:11]} 31. Rxe1 {[%emt 0:00:02]} Re8 {[%emt 0:00:05]} 32. Rh1 {[%emt 0:00:15]} Rh8 {[%emt 0:01:14]} 33. Kc3 {[%emt 0:00:12]} c6 {[%emt 0:02:46]} 34. dxc6 {[%emt 0:00:03]} bxc6 {[%emt 0:00:01]} 35. b4 {[%emt 0:00:25]} Kc7 {[%emt 0:00:13]} 36. Rh2 {[%emt 0:02:34]} Kd7 {[%emt 0:00:31]} 37. b5 {[%emt 0:00:14]} cxb5 {[%emt 0:00:08]} 38. cxb5 {[%emt 0:00:01]} axb5 {[%emt 0:00:02]} 39. Bxb5+ {[%emt 0:00:00]} Kc7 {[%emt 0:00:17]} 40. Kb4 {[%emt 0:00:12]} Bd5 {[%emt 0:00:13]} 41. Rc2+ {[%emt 0:00:04]} Kb7 {[%emt 0:00:30]} 42. Rd2 {[%emt 0:00:12]} Bf3 {[%emt 0:01:13]} 43. Rxd6 {[%emt 0:00:03]} Rxh3 {[%emt 0:00:02]} 44. Rd7+ {[%emt 0:00:12]} Kc8 {[%emt 0:00:05]} 45. Rxg7 {[%emt 0:00:43]} Rg3 {[%emt 0:00:22]} 46. Kc5 {[%emt 0:00:13]} Rxg4 {[%emt 0:00:04]} 47. a6 {[%emt 0:00:39]} Rg1 {[%emt 0:01:31]} 48. a7 {[%emt 0:01:03]} Ra1 {[%emt 0:00:40]} 49. Kb6 {[%emt 0:00:05]} Kd8 {[%emt 0:00:09]} 50. Rd7+ {[%emt 0:00:03]} Kc8 {[%emt 0:00:02]} 51. Re7 {[%emt 0:00:03]} 1-0

[Event "Kurnosov Memorial Rapid 2019"]
[Site "Chelyabinsk"]
[Date "2019.09.08"]
[Round "11.10"]
[White "Kryakvin, Dmitry"]
[Black "Bezgodov, Alexei"]
[Result "1/2-1/2"]
[ECO "D02"]
[WhiteElo "2610"]
[BlackElo "2459"]
[Annotator "RC"]
[PlyCount "106"]
[EventDate "2019.09.06"]
[EventType "swiss"]
[EventCountry "RUS"]
[SourceTitle "playchess.com"]
[Source "ChessBase"]
[SourceQuality "1"]
[TimeControl "900+10"]

1. d4 {[%emt 0:00:00]} d5 {[%emt 0:00:00]} 2. Nf3 {[%emt 0:00:00]} c5 {[%emt 0:00:17]} 3. c4 {[%emt 0:00:16]} cxd4 {[%emt 0:00:09]} 4. cxd5 {[%emt 0:00:17]} Nf6 {[%emt 0:00:22]} 5. Qxd4 {[%emt 0:00:12]} Qxd5 {[%emt 0:00:12]} 6. Nc3 {[%emt 0:00:09]} Qxd4 {[%emt 0:00:03]} 7. Nxd4 {[%emt 0:00:02]} e5 {[%emt 0:00:20]} 8. Ndb5 {[%emt 0:00:41]} Na6 {[%emt 0:00:00]} 9. g3 {[%emt 0:00:59]} Bd7 {[%emt 0:00:04]} 10. Bg2 {[%emt 0:00:16]} Bxb5 {[%emt 0:00:02]} 11. Nxb5 {[%emt 0:00:02]} Bb4+ {[%emt 0:00:02]} 12. Nc3 {[%emt 0:01:01]} Bxc3+ {[%emt 0:00:04]} 13. bxc3 {[%emt 0:00:01]} Nc5 {[%emt 0:00:01]} 14. Be3 {[%emt 0:01:40]} Rc8 {[%emt 0:00:23]} 15. O-O {[%emt 0:01:15]} b6 {[%emt 0:00:34]} 16. c4 {[%emt 0:00:16]} Ke7 {[%emt 0:00:58]} 17. Rfd1 {[%emt 0:00:13]} Rhd8 {[%emt 0:00:48]} 18. h3 {[%emt 0:00:11]} Rxd1+ {[%emt 0:01:51]} 19. Rxd1 {[%emt 0:00:01]} Nfd7 {[%emt 0:01:30]} 20. Bd5 {[%emt 0:00:43]} Nf6 {[%emt 0:00:12]} 21. Bg2 {[%emt 0:01:18]} Nfd7 {[%emt 0:00:15]} 22. f4 {[%emt 0:00:31]} f6 {[%emt 0:00:27]} 23. Bd5 {[%emt 0:00:05]} exf4 {[%emt 0:00:45]} 24. gxf4 {[%emt 0:00:06]} f5 {[%emt 0:00:20]} 25. Bf2 {[%emt 0:00:31]} Nf6 {[%emt 0:00:14]} 26. Bh4 {[%emt 0:00:02]} Rd8 {[%emt 0:00:19]} 27. Kh2 {[%emt 0:00:38]} Rd6 {[%emt 0:00:08]} 28. e3 {[%emt 0:04:32]} Kf8 {[%emt 0:00:22]} 29. Bf3 {[%emt 0:00:01]} Rxd1 {[%emt 0:00:07]} 30. Bxd1 {[%emt 0:00:01]} Nfe4 {[%emt 0:00:10]} 31. Bc2 {[%emt 0:00:47]} g6 {[%emt 0:00:19]} 32. Be1 {[%emt 0:00:51]} Nd6 {[%emt 0:00:20]} 33. Bb3 {[%emt 0:00:27]} a5 {[%emt 0:00:29]} 34. Kg2 {[%emt 0:00:02]} a4 {[%emt 0:00:20]} 35. Bc2 {[%emt 0:00:02]} Nxc4 {[%emt 0:00:03]} 36. Kf3 {[%emt 0:00:07]} Kf7 {[%emt 0:02:44]} 37. Bb4 {[%emt 0:00:06]} Na6 {[%emt 0:00:02]} 38. Be1 {[%emt 0:00:52]} b5 {[%emt 0:00:38]} 39. e4 {[%emt 0:00:02]} Ke6 {[%emt 0:00:25]} 40. exf5+ {[%emt 0:00:41]} gxf5 {[%emt 0:00:02]} 41. h4 {[%emt 0:00:12]} Nb8 {[%emt 0:01:04]} 42. Bd3 {[%emt 0:00:31]} Nc6 {[%emt 0:00:05]} 43. Bc3 {[%emt 0:00:01]} Nd6 {[%emt 0:00:10]} 44. Ke3 {[%emt 0:00:24]} Kd5 {[%emt 0:00:16]} 45. Bg7 {[%emt 0:00:39]} Nb4 {[%emt 0:00:38]} 46. Bb1 {[%emt 0:00:06]} a3 {[%emt 0:00:31]} 47. Bf8 {[%emt 0:00:09]} Nc6 {[%emt 0:00:43]} 48. Bxd6 {[%emt 0:00:14]} Kxd6 {[%emt 0:00:01]} 49. Bxf5 {[%emt 0:00:02]} Nb4 {[%emt 0:00:06]} 50. Bxh7 {[%emt 0:00:22]} Nxa2 {[%emt 0:00:15]} 51. Kd2 {[%emt 0:00:13]} Nb4 {[%emt 0:00:35]} 52. Kc3 {[%emt 0:00:03]} Nd5+ {[%emt 0:00:23]} 53. Kb3 {[%emt 0:00:01]} Nxf4 {[%emt 0:00:06]} 1/2-1/2